bitfinex-derivatives/quotes_ETHF0:USTF0_20240822
["timestamp","ask_amount","ask_price","bid_price","bid_amount"]
[1724343767594,0.38689709,2608.2,2608.1,0.7266]
[1724343767993,0.38689709,2608.2,2608.1,0.3518]
[1724343768196,0.00360709,2608.2,2608.1,0.3518]
[1724343768704,0.00360709,2608.2,2608.1,4.56951]
[1724343772004,0.00360709,2608.2,2608.1,9.56951]
[1724343772296,0.00575209,2608.5,2608.4,0.38326]
[1724343772496,0.38316,2609.1,2608.8,0.38319]
[1724343772707,0.38316,2609.1,2608.9,0.3826]
[1724343772897,0.71931764,2609.3,2608.9,0.3826]
[1724343772898,0.38317,2609.0,2608.9,0.7632]
[1724343773092,0.71931764,2609.3,2608.8,3.2078]
[1724343773288,0.3832,2608.9,2608.6,0.38323]
[1724343773507,0.00575209,2609.0,2608.5,3.95695209]
[1724343773698,0.38321,2608.8,2608.5,4.34019209]
[1724343774099,0.38319,2608.9,2608.6,0.38322]
[1724343774591,0.38105209,2609.0,2608.5,3.95695209]
[1724343774799,0.38323,2608.7,2608.5,3.95695209]
[1724343774996,0.38321,2608.8,2608.5,4.34019209]
[1724343775196,0.3832,2608.9,2608.6,0.38323]
[1724343775494,0.70776187,2609.0,2608.5,4.34019209]
[1724343775495,0.3832,2608.8,2608.5,4.34019209]
[1724343775805,0.38321,2608.8,2608.5,4.34019209]
[1724343776304,0.3832,2608.9,2608.6,0.38323]
[1724343776802,0.3832,2608.9,2608.5,4.34018209]
[1724343777107,0.38321,2608.8,2608.5,4.34018209]
[1724343777893,0.33246187,2609.0,2608.5,3.59615209]
[1724343778100,0.38323,2608.7,2608.5,0.38835209]
[1724343779038,0.74811,2608.8,2608.5,0.77160209]
[1724343779202,0.3649,2608.8,2608.6,0.38322]
[1724343779510,0.3832,2608.9,2608.6,0.38322]
[1724343779807,0.33246187,2609.0,2608.7,0.3832]
[1724343779808,1.07005187,2609.0,2608.7,0.3832]
[1724343780200,0.38319,2608.9,2608.7,0.3832]
[1724343780511,1.07004187,2609.0,2608.7,0.3832]
[1724343780705,0.68686187,2609.0,2608.7,0.3832]
[1724343780894,1.07003187,2609.0,2608.7,0.3832]
[1724343781198,1.07003187,2609.0,2608.8,0.3832]
[1724343781199,0.36015209,2609.0,2608.8,0.3832]
[1724343781404,0.00575209,2609.0,2608.9,0.38319]
[1724343782197,0.00312278,2609.3,2609.2,0.38314]
[1724343782401,0.00312278,2609.3,2609.2,4.21594]
[1724343784197,0.00575209,2609.5,2609.4,0.38311]
[1724343784404,0.00575209,2609.5,2609.4,7.42291]
[1724343784907,0.3819,2610.0,2609.7,0.38307]
[1724343785109,0.3819,2610.0,2609.8,0.3581]
[1724343785302,0.38459464,2610.0,2609.8,0.3581]
[1724343785503,0.71753663,2610.0,2609.8,0.74115]
[1724343785708,0.33563663,2610.0,2609.8,0.74115]
[1724343785905,0.33563663,2610.0,2609.8,0.3581]
[1724343786108,0.33563663,2610.0,2609.8,4.1893]
[1724343786314,0.33563663,2610.0,2609.9,0.7311]
[1724343786315,0.00269464,2610.0,2609.9,0.7311]
[1724343786509,0.00269464,2610.0,2609.9,1.11414]
[1724343786808,0.00269464,2610.0,2609.9,4.94534]
[1724343787203,0.38304,2609.9,2609.7,0.00393783]
[1724343787409,0.38306,2609.8,2609.7,0.00393783]
[1724343787608,0.38305,2609.9,2609.7,0.00393783]
[1724343789205,3.59352464,2610.0,2609.7,0.00393783]
[1724343789407,3.21049464,2610.0,2609.7,0.00393783]
[1724343790009,3.21049464,2610.0,2609.7,0.38699783]
[1724343790204,3.21049464,2610.0,2609.8,0.3724]
[1724343790624,0.00269464,2610.0,2609.8,0.3724]
[1724343791316,0.00269464,2610.0,2609.7,0.00393783]
[1724343791617,0.38306,2609.8,2609.7,0.00393783]
[1724343791820,0.37369464,2610.0,2609.7,0.00393783]
[1724343792021,0.38304,2609.9,2609.7,0.00393783]
[1724343792217,0.38306,2609.8,2609.7,0.00393783]
[1724343792417,0.3619,2609.8,2609.7,0.00393783]
[1724343793521,0.3619,2609.8,2609.2,0.3724]
[1724343793522,4.1939,2609.8,2609.2,0.3724]
[1724343793714,0.3592,2609.7,2609.2,0.3724]
[1724343793911,0.3592,2609.7,2609.4,3.2078]
[1724343794120,0.74228,2609.7,2609.3,0.38312]
[1724343794524,0.3592,2609.7,2609.4,3.2078]
[1724343794725,0.3592,2609.7,2609.4,3.59091]
[1724343796022,0.3592,2609.7,2609.4,3.2078]
[1724343796226,3.91301353,2610.0,2609.6,0.38307]
[1724343796427,0.00269464,2610.0,2609.9,0.38304]
[1724343797226,0.00269464,2610.0,2609.8,0.3526]
[1724343797729,0.00269464,2610.0,2609.8,0.73565]
[1724343798333,0.00269464,2610.0,2609.9,0.38304]
[1724343798726,0.00269464,2610.0,2609.9,4.21424]
[1724343799231,0.00269464,2610.0,2609.8,0.73565]
[1724343799429,0.00269464,2610.0,2609.9,0.38304]
[1724343801233,0.00269464,2610.0,2609.8,0.73564]
[1724343801623,0.00269464,2610.0,2609.9,0.38304]
[1724343802221,0.00269464,2610.0,2609.8,0.73565]
[1724343803427,0.38572464,2610.0,2609.7,3.59086]
[1724343804131,0.00269464,2610.0,2609.7,3.59086]
[1724343804335,0.38572464,2610.0,2609.7,3.59086]
[1724343804836,0.38572464,2610.0,2609.7,3.2078]
[1724343805130,0.38572464,2610.0,2609.7,3.59086]
[1724343805330,0.00269464,2610.0,2609.7,3.59086]
[1724343805524,0.38306,2609.8,2609.5,0.3648]
[1724343805725,0.3727,2609.7,2609.4,0.38311]
[1724343805921,0.3727,2609.7,2609.3,3.21246019]
[1724343806132,0.71540873,2610.0,2609.7,0.38306]
[1724343806434,0.71540873,2610.0,2609.6,3.59088]
[1724343806626,0.33237873,2610.0,2609.7,0.38307]
[1724343807131,0.33237873,2610.0,2609.6,3.2078]
[1724343807327,3.832,2609.9,2609.6,1.85417]
[1724343807529,3.832,2609.9,2609.3,0.00466019]
[1724343807530,0.38311,2609.4,2609.3,0.00466019]
[1724343807726,0.38313,2609.3,2608.7,0.3687]
[1724343807931,3.2078,2609.4,2608.7,0.3687]
[1724343807932,3.2078,2609.4,2608.9,3.2078]
[1724343808231,3.2078,2609.4,2609.1,0.38315]
[1724343808429,3.59092,2609.4,2608.9,3.2078]
[1724343808630,3.59092,2609.4,2608.9,3.59552671]
[1724343809227,3.2078,2609.4,2609.0,0.38317]
[1724343809630,3.2078,2609.4,2609.1,0.3475]
[1724343810626,3.2078,2609.4,2609.3,0.38313]
[1724343811123,3.2078,2609.4,2609.3,0.3551]
[1724343811325,3.2078,2609.4,2609.1,0.3475]
[1724343811741,0.38313,2609.3,2609.1,0.3475]
[1724343812133,0.38312,2609.4,2609.1,0.3475]
[1724343812528,3.53958876,2609.7,2609.1,0.3475]
[1724343812731,0.38314,2609.3,2609.1,0.3475]
[1724343812927,3.53958876,2609.7,2609.1,0.3475]
[1724343813129,0.38314,2609.2,2609.1,0.3475]
[1724343813537,0.38317,2609.0,2608.9,0.00454671]
[1724343813837,0.38317,2609.1,2608.9,0.00454671]
[1724343814039,0.38317,2609.0,2608.9,0.00454671]
[1724343814231,0.38316,2609.1,2608.9,0.00454671]
[1724343814729,1.31785,2609.3,2608.9,0.00454671]
[1724343814730,0.38317,2609.0,2608.9,0.00454671]
[1724343815137,4.21597,2609.0,2608.9,0.00454671]
[1724343815436,4.57897,2609.0,2608.9,0.00454671]
[1724343815638,5.53691,2609.0,2608.9,0.00454671]
[1724343816547,0.38572464,2610.0,2609.0,0.95794]
[1724343816732,0.38572464,2610.0,2608.9,8.71015316]
[1724343816733,0.00269464,2610.0,2609.9,0.49780645]
[1724343817236,0.00269464,2610.0,2609.9,0.88084645]
[1724343818432,0.00269464,2610.0,2609.9,0.49780645]
[1724343818730,0.38572464,2610.0,2609.9,0.49780645]
[1724343819428,0.00269464,2610.0,2609.9,0.49780645]
[1724343821837,0.38572464,2610.0,2609.9,0.49780645]
[1724343822039,0.00269464,2610.0,2609.9,0.49780645]
[1724343822440,0.38572464,2610.0,2609.9,0.49780645]
[1724343823831,4.21692464,2610.0,2609.4,1.0721]
[1724343824030,0.38573464,2610.0,2609.8,0.49780645]
[1724343824436,0.38304,2609.9,2609.8,0.49780645]
[1724343824733,0.00269464,2610.0,2609.9,0.49780645]
[1724343826033,0.38572464,2610.0,2609.9,0.49780645]
[1724343826236,3.83389464,2610.0,2609.4,1.0721]
[1724343826437,0.38308,2609.7,2609.4,1.0721]
[1724343826636,0.7414,2609.9,2609.8,0.49780645]
[1724343826934,0.38306,2609.8,2609.7,0.49780645]
[1724343827934,0.00269464,2610.0,2609.7,0.49780645]
[1724343828142,0.00269464,2610.0,2609.9,0.49780645]
[1724343828737,0.00269464,2610.0,2609.9,0.88084645]
[1724343828936,0.00269464,2610.0,2609.9,0.49780645]
[1724343829132,0.00269464,2610.0,2609.9,0.88084645]
[1724343829339,0.00269464,2610.0,2609.9,4.19284645]
[1724343829535,0.00269464,2610.0,2609.9,10.15045645]
[1724343829744,0.00269464,2610.0,2609.9,9.19284645]
[1724343830045,0.00269464,2610.0,2609.9,0.88084645]
[1724343830733,0.00269464,2610.0,2609.9,0.49780645]
[1724343830928,0.00269464,2610.0,2609.9,0.88084645]
[1724343833140,0.00269464,2610.0,2609.9,0.49780645]
[1724343833637,0.00269464,2610.0,2609.9,1.23900645]
[1724343834149,0.00269464,2610.0,2609.9,1.62204645]
[1724343835745,0.00269464,2610.0,2609.9,42.12204645]
[1724343836341,0.00269464,2610.0,2609.9,1.62204645]
[1724343838645,0.00269464,2610.0,2609.9,2.57965645]
[1724343839648,0.00269464,2610.0,2609.9,1.62204645]
[1724343839939,0.00269464,2610.0,2609.9,1.23900645]
[1724343840140,0.00269464,2610.0,2609.9,1.62204645]
[1724343840537,0.00269464,2610.0,2609.9,1.23900645]
[1724343840753,0.38572464,2610.0,2609.9,1.23900645]
[1724343841038,0.00269464,2610.0,2609.9,1.62204645]
[1724343846560,0.00269464,2610.0,2609.9,0.49780645]
[1724343846561,0.38572464,2610.0,2609.9,0.49780645]
[1724343846849,0.38572464,2610.0,2609.9,3.70560645]
[1724343847149,0.38572464,2610.0,2609.9,0.49780645]
[1724343848050,0.71830356,2610.0,2609.9,0.49780645]
[1724343850749,0.71830356,2610.0,2609.7,0.38306]
[1724343850750,4.16647356,2610.0,2609.7,0.38306]
[1724343850944,0.3818,2609.9,2609.8,0.49780645]
[1724343851540,0.76484,2609.9,2609.8,0.49780645]
[1724343851746,7.9716,2609.9,2609.0,3.2078]
[1724343851952,0.38311,2609.5,2609.3,0.49780645]
[1724343852148,0.3818,2609.4,2609.3,0.49780645]
[1724343852348,0.38314,2609.3,2609.0,0.7318]
[1724343852548,0.38314,2609.3,2608.7,0.7248]
[1724343852549,0.38316,2609.1,2608.7,0.7248]
[1724343852744,0.74207,2609.0,2608.9,0.13205351]
[1724343853041,0.3589,2609.0,2608.9,0.13205351]
[1724343853853,3.94154,2609.3,2608.9,0.13205351]
[1724343854060,3.2078,2609.6,2609.2,0.5106468]
[1724343854257,3.2078,2609.6,2609.4,0.1275068]
[1724343854650,3.53094061,2609.6,2609.4,0.1275068]
[1724343855345,3.91403061,2609.6,2609.4,0.1275068]
[1724343855551,3.53094061,2609.6,2609.4,0.1275068]
[1724343855952,3.832,2609.5,2608.9,0.00454671]
[1724343856144,3.59093,2609.3,2608.9,0.00454671]
[1724343856345,0.352,2609.2,2608.9,0.00454671]
[1724343856751,3.59093,2609.3,2609.0,0.38316]
[1724343856752,3.2078,2609.3,2609.0,0.38316]
[1724343857056,3.2078,2609.3,2609.1,0.76346]
[1724343857252,3.2078,2609.3,2609.2,0.3511]
[1724343857862,0.38315,2609.2,2608.9,0.00454671]
[1724343858158,3.59094,2609.3,2608.9,0.38484671]
[1724343858547,3.91572629,2609.3,2608.9,0.38484671]
[1724343858946,3.53258629,2609.3,2608.9,0.38484671]
[1724343859143,3.53258629,2609.3,2608.9,0.76803671]
[1724343859346,3.91571629,2609.3,2608.9,0.38484671]
[1724343859555,3.53258629,2609.3,2608.9,0.00454671]
[1724343859760,0.38317,2609.0,2608.9,0.00454671]
[1724343859963,0.7242,2609.2,2608.9,0.00454671]
[1724343860150,0.38317,2609.1,2608.9,0.00454671]
[1724343860353,0.3829,2609.0,2608.9,0.00454671]
[1724343861362,0.74265,2609.2,2608.9,0.00454671]
[1724343861659,0.74265,2609.2,2608.9,0.35634671]
[1724343862047,0.9579,2609.1,2608.6,3.2078]
[1724343862253,3.2078,2608.7,2608.5,0.00575209]
[1724343862454,0.38891489,2608.9,2608.5,0.38899209]
[1724343862656,0.38321,2608.8,2608.5,0.00575209]
[1724343863244,0.37261489,2608.9,2608.5,0.00575209]
[1724343863245,0.75581489,2608.9,2608.5,0.39373258]
[1724343863547,0.75580489,2608.9,2608.5,0.39373258]
[1724343864060,3.2078,2608.7,2608.5,0.01049258]
[1724343864258,0.75583,2608.6,2608.5,0.01049258]
[1724343864447,0.3726,2608.6,2608.5,0.01049258]
[1724343864946,0.38321,2608.8,2608.5,0.01049258]
[1724343865252,0.37261489,2608.9,2608.5,0.01049258]
[1724343865253,0.38322,2608.7,2608.5,0.01049258]
[1724343865660,0.38321,2608.8,2608.5,0.01049258]
[1724343865959,0.33281369,2608.9,2608.6,0.38323]
[1724343866255,0.199729,2608.9,2608.5,0.01049258]
[1724343866460,0.00571489,2608.9,2608.5,0.39373258]
[1724343866656,0.00571489,2608.9,2608.5,0.01049258]
[1724343866853,0.00571489,2608.9,2608.7,0.38321]
[1724343867053,0.00571489,2608.9,2608.6,0.38322]
[1724343867248,0.38321,2608.8,2608.5,0.01049258]
[1724343867458,0.00571489,2608.9,2608.5,0.01049258]
[1724343867459,0.377,2608.7,2608.5,0.01049258]
[1724343867665,0.377,2608.7,2608.5,0.39373258]
[1724343867962,0.377,2608.7,2608.5,0.01049258]
[1724343868548,0.38323,2608.6,2608.5,0.01049258]
[1724343868855,0.74393,2608.6,2608.5,0.01049258]
[1724343869052,4.57753,2608.6,2608.5,0.01049258]
[1724343869750,0.74393,2608.6,2608.5,0.01049258]
[1724343869951,0.3607,2608.6,2608.5,0.01049258]
[1724343870352,0.33317723,2608.8,2608.5,0.01049258]
[1724343870548,1.72562,2608.6,2608.5,0.01049258]
[1724343870958,5.55922,2608.6,2608.5,0.01049258]
[1724343872367,7.26922,2608.6,2608.5,0.01049258]
[1724343873656,10.9279,2608.6,2607.4,3.2078]
[1724343873963,10.9279,2608.6,2606.8,0.3349058]
[1724343873964,6.5198,2608.2,2607.5,0.7204]
[1724343874261,0.3943,2608.1,2607.5,0.7204]
[1724343874569,0.3943,2608.1,2607.7,0.38335]
[1724343874753,0.00332488,2608.1,2607.9,0.38333]
[1724343875260,0.00332488,2608.1,2608.0,0.7221]
[1724343875459,0.00332488,2608.1,2608.0,1.10542]
[1724343875765,0.00332488,2608.1,2608.0,4.5565]
[1724343877462,0.00332488,2608.1,2608.0,9.93982]
[1724343878260,0.00332488,2608.1,2608.0,13.14762]
[1724343879269,0.32072164,2608.5,2608.4,0.95816]
[1724343879469,0.3696,2610.3,2609.6,0.38308]
[1724343879765,3.0996,2610.3,2609.5,3.2078]
[1724343879967,0.3696,2610.3,2609.6,0.77228]
[1724343880269,0.75663289,2610.3,2609.8,0.38306]
[1724343880457,0.70625751,2610.3,2609.8,0.38881209]
[1724343880658,0.33665751,2610.3,2609.9,0.38303]
[1724343880863,0.00979498,2610.3,2609.9,0.38303]
[1724343881058,0.00979498,2610.3,2609.8,0.00575209]
[1724343881059,0.00979498,2610.3,2610.1,0.38301]
[1724343882372,0.00979498,2610.3,2610.0,0.38301]
[1724343882762,0.00979498,2610.3,2609.9,0.38303]
[1724343883160,0.39278498,2610.3,2609.8,0.36395209]
[1724343883364,0.39278498,2610.3,2609.8,0.74701209]
[1724343883669,0.39278498,2610.3,2609.8,0.36395209]
[1724343884076,0.39278498,2610.3,2609.8,0.74700209]
[1724343884867,0.383,2610.2,2609.8,0.36395209]
[1724343885061,0.39278498,2610.3,2609.8,0.74701209]
[1724343885265,0.00979498,2610.3,2609.8,0.74701209]
[1724343885474,0.39278498,2610.3,2609.8,0.74701209]
[1724343885670,0.383,2610.2,2609.8,0.74701209]
[1724343885872,0.72322941,2610.3,2609.8,0.74700209]
[1724343886466,0.34023941,2610.3,2609.9,0.38304]
[1724343886769,0.34023941,2610.3,2609.8,0.36395209]
[1724343886770,0.34023941,2610.3,2609.8,0.74700209]
[1724343887075,0.72323941,2610.3,2609.8,0.74700209]
[1724343887273,0.72323941,2610.3,2609.9,0.38304]
[1724343887670,0.34023941,2610.3,2610.0,0.38302]
[1724343887877,0.72321941,2610.3,2609.9,0.38303]
[1724343888070,0.34023941,2610.3,2609.9,0.38303]
[1724343888270,0.00979498,2610.3,2610.0,0.38302]
[1724343889070,0.00979498,2610.3,2610.1,0.38301]
[1724343889274,0.00979498,2610.3,2610.0,0.38302]
[1724343889582,0.00979498,2610.3,2610.1,0.38301]
[1724343890465,0.00979498,2610.3,2610.0,0.38302]
[1724343890881,0.39278498,2610.3,2609.8,3.57175209]
[1724343891077,0.00979498,2610.3,2609.8,3.57175209]
[1724343891377,0.00979498,2610.3,2610.0,0.38302]
[1724343891965,0.00979498,2610.3,2610.1,0.38301]
[1724343892380,0.00979498,2610.3,2609.8,6.88375209]
[1724343892682,0.00979498,2610.3,2610.1,0.383]
[1724343892975,0.00979498,2610.3,2609.8,6.88375209]
[1724343893169,0.00979498,2610.3,2610.1,0.38301]
[1724343893375,0.00979498,2610.3,2610.1,3.59081]
[1724343893874,0.00979498,2610.3,2610.1,0.38301]
[1724343894478,0.00979498,2610.3,2610.0,0.38301]
[1724343894978,0.00979498,2610.3,2610.1,0.38301]
[1724343895276,0.00979498,2610.3,2609.8,6.88375209]
[1724343895575,0.39277498,2610.3,2609.9,0.38303]
[1724343895781,0.383,2610.2,2609.9,0.38304]
[1724343895984,0.39278498,2610.3,2610.0,0.38302]
[1724343896172,0.39278498,2610.3,2609.9,0.38303]
[1724343896374,0.39278498,2610.3,2610.0,0.38302]
[1724343896580,0.39278498,2610.3,2609.8,3.57175209]
[1724343896581,0.39278498,2610.3,2609.9,0.38303]
[1724343896781,0.383,2610.2,2609.9,0.38303]
[1724343896974,0.39278498,2610.3,2609.9,0.38303]
[1724343898178,0.00979498,2610.3,2609.8,0.36395209]
[1724343898383,0.38302,2610.1,2609.8,0.36395209]
[1724343898582,0.76411,2610.2,2609.8,0.74700209]
[1724343898781,0.38301,2610.1,2609.8,0.36395209]
[1724343899095,0.76411,2610.2,2609.8,0.74700209]
[1724343899382,0.38302,2610.1,2609.8,0.74700209]
[1724343899778,0.38302,2610.1,2609.8,0.36395209]
[1724343899978,0.38302,2610.1,2609.8,0.74700209]
[1724343900188,0.3811,2610.2,2609.8,0.36395209]
[1724343900690,0.38303,2610.0,2609.8,0.36395209]
[1724343900993,0.38302,2610.1,2609.8,0.74700209]
[1724343901178,0.38302,2610.1,2609.8,0.36395209]
[1724343901379,0.38302,2610.1,2609.8,0.74700209]
[1724343901781,0.38302,2610.1,2609.8,0.38880209]
[1724343903384,0.70858334,2610.2,2609.8,0.00575209]
[1724343903593,0.38304,2609.9,2609.8,0.00575209]
[1724343903788,0.38303,2610.0,2609.8,0.00575209]
[1724343904286,0.38304,2609.9,2609.8,0.00575209]
[1724343904482,0.38303,2610.0,2609.8,0.00575209]
[1724343904884,3.8312,2610.0,2609.8,0.00575209]
[1724343905095,0.38303,2610.0,2609.8,0.00575209]
[1724343905290,0.3767,2610.1,2609.8,0.00575209]
[1724343905491,0.38303,2610.0,2609.8,0.00575209]
[1724343906182,0.38304,2609.9,2609.8,0.00575209]
[1724343906498,0.3767,2610.1,2609.8,0.00575209]
[1724343906499,0.38303,2610.0,2609.8,0.00575209]
[1724343908996,4.21424,2609.9,2609.8,0.00575209]
[1724343909195,0.38306,2609.8,2609.6,0.00365923]
[1724343909388,3.2078,2609.7,2609.6,0.00365923]
[1724343909789,7.0398,2609.7,2609.6,0.00365923]
[1724343910185,7.42287,2609.7,2609.6,0.00365923]
[1724343910985,3.5845,2610.1,2609.6,0.00365923]
[1724343911295,0.38304,2609.9,2609.6,0.00365923]
[1724343912097,3.2078,2610.1,2609.6,0.38673923]
[1724343912393,3.2078,2610.1,2609.6,0.00365923]
[1724343912394,0.38303,2610.0,2609.6,0.00365923]
[1724343912602,0.38304,2609.9,2609.7,0.3876]
[1724343912787,0.38304,2610.0,2609.7,0.3876]
[1724343913094,0.38304,2609.9,2609.7,0.3876]
[1724343913301,0.38304,2610.0,2609.7,0.3876]
[1724343915098,0.38303,2610.0,2609.7,0.3876]
[1724343915296,3.2078,2610.1,2609.7,0.3876]
[1724343915490,3.2078,2610.1,2609.8,0.38305]
[1724343915687,0.71048334,2610.2,2609.8,0.3893]
[1724343915898,0.71048334,2610.2,2609.9,0.3934]
[1724343916405,0.00979498,2610.3,2609.9,4.2246]
[1724343916593,0.00979498,2610.3,2610.1,0.38301]
[1724343916787,0.00979498,2610.3,2610.2,0.4047]
[1724343917994,0.39277498,2610.3,2610.2,0.4047]
[1724343919103,0.00979498,2610.3,2610.2,0.4047]
[1724343919398,0.39277498,2610.3,2610.2,0.4047]
[1724343919607,0.00979498,2610.3,2610.2,0.4047]
[1724343920791,0.39277498,2610.3,2610.2,0.4047]
[1724343920990,0.39277498,2610.3,2609.9,0.3934]
[1724343920991,0.383,2610.2,2609.9,0.3934]
[1724343921186,0.00979498,2610.3,2609.9,0.7755]
[1724343921390,0.38301,2610.2,2609.9,0.7755]
[1724343921805,0.41079498,2610.3,2609.9,1.15853]
[1724343921995,0.79378498,2610.3,2609.9,1.15853]
[1724343922696,0.38302,2610.1,2609.9,0.7755]
[1724343923098,0.41079498,2610.3,2609.9,0.7755]
[1724343923099,0.38303,2610.0,2609.9,0.7755]
[1724343923498,0.9575,2610.2,2609.8,3.2078]
[1724343923499,0.38304,2609.9,2609.8,3.2078]
[1724343923692,0.38304,2609.9,2609.6,0.00365923]
[1724343923693,0.95754,2610.1,2609.6,0.00365923]
[1724343923896,4.57607498,2610.3,2609.7,0.38307]
[1724343924097,4.57607498,2610.3,2609.6,0.00365923]
[1724343924098,4.60607498,2610.3,2609.6,0.38673923]
[1724343924294,0.38304,2610.0,2609.6,0.00365923]
[1724343924493,0.95755,2610.1,2609.6,0.00365923]
[1724343924692,0.38305,2609.9,2609.6,0.38673923]
[1724343925003,0.38304,2610.0,2609.6,0.38673923]
[1724343925195,0.38304,2609.9,2609.6,0.38673923]
[1724343925904,0.38307,2609.8,2609.6,0.00365923]
[1724343926096,0.38307,2609.7,2609.6,0.00365923]
[1724343926296,0.77466,2609.8,2609.6,0.00365923]
[1724343927701,0.38307,2609.7,2609.6,0.00365923]
[1724343927898,0.77467,2609.8,2609.6,0.00365923]
[1724343928100,0.3916,2609.8,2609.6,0.00365923]
[1724343928296,1.03571286,2609.8,2609.6,0.00365923]
[1724343928807,3.2078,2610.0,2609.6,0.00365923]
[1724343929112,3.2078,2610.0,2609.9,0.38304]
[1724343929305,4.103,2610.2,2609.9,3.8312]
[1724343929507,4.103,2610.2,2610.0,0.78112]
[1724343929700,4.103,2610.2,2610.1,0.38301]
[1724343930001,0.00979498,2610.3,2610.1,0.3878]
[1724343930904,0.00979498,2610.3,2610.1,0.77081]
[1724343931300,0.00979498,2610.3,2610.2,0.383]
[1724343931701,0.00979498,2610.3,2610.2,4.2142]
[1724343933403,0.00979498,2610.3,2610.1,0.7708]
[1724343933598,0.00979498,2610.3,2610.2,0.383]
[1724343934606,0.00979498,2610.3,2610.2,4.2142]
[1724343934903,0.00979498,2610.3,2610.2,4.5885]
[1724343935306,0.00979498,2610.3,2610.2,5.546]
[1724343935499,0.00979498,2610.3,2610.2,4.5885]
[1724343936106,0.00979498,2610.3,2610.2,0.383]
[1724343936409,0.00979498,2610.3,2610.2,4.2142]
[1724343936704,0.00979498,2610.3,2610.1,0.3878]
[1724343936909,3.5908,2610.2,2609.7,0.38306]
[1724343937102,0.38305,2609.9,2609.6,0.00365923]
[1724343937299,0.38305,2609.9,2609.6,0.38672923]
[1724343937606,0.38305,2609.9,2609.7,0.38306]
[1724343938605,1.1423,2610.1,2609.7,0.38306]
[1724343938810,0.38305,2609.9,2609.7,0.38306]
[1724343939108,0.38305,2609.9,2609.8,0.38306]
[1724343939412,0.38304,2609.9,2609.8,0.38306]
[1724343941010,0.38303,2610.0,2609.8,0.38306]
[1724343941308,0.382,2610.1,2610.0,0.38303]
[1724343941513,0.27974358,2610.3,2610.2,0.383]
[1724343941713,0.27974358,2610.3,2610.1,0.383]
[1724343941908,0.66273358,2610.3,2610.1,0.383]
[1724343942205,0.27974358,2610.3,2610.1,0.383]
[1724343942413,0.00979498,2610.3,2610.2,0.383]
[1724343942716,0.39277498,2610.3,2609.9,0.3708]
[1724343943005,0.39277498,2610.3,2609.6,0.00365923]
[1724343943006,0.39278498,2610.3,2610.0,0.3711]
[1724343943207,0.00979498,2610.3,2610.1,0.38301]
[1724343943401,0.00979498,2610.3,2610.0,0.75412]
[1724343943601,0.39277498,2610.3,2610.0,0.75412]
[1724343943810,0.39277498,2610.3,2610.0,0.3711]
[1724343944115,0.00979498,2610.3,2610.0,0.3711]
[1724343944315,0.39277498,2610.3,2610.0,0.75412]
[1724343944506,0.00979498,2610.3,2610.1,0.38301]
[1724343944909,0.00979498,2610.3,2610.0,0.75412]
[1724343945612,0.00979498,2610.3,2610.1,0.38301]
[1724343945906,0.00979498,2610.3,2610.2,0.383]
[1724343946810,0.00979498,2610.3,2610.1,0.7831]
[1724343947006,0.00979498,2610.3,2610.1,0.4001]
[1724343947208,0.383,2610.2,2609.6,0.37445923]
[1724343947418,0.7513,2610.2,2609.8,0.38306]
[1724343947708,0.7513,2610.2,2609.9,0.38304]
[1724343948109,0.38301,2610.1,2609.7,1.17076]
[1724343948417,0.77091,2610.1,2609.8,0.38305]
[1724343948807,0.77092,2610.1,2609.8,0.38305]
[1724343949212,0.38303,2610.0,2609.7,1.17076]
[1724343949711,0.38303,2610.0,2609.8,0.38305]
[1724343950116,0.3879,2610.1,2609.7,0.7877]
[1724343950416,0.38303,2610.0,2609.8,0.38305]
[1724343950818,0.38305,2609.9,2609.7,1.17077]
[1724343951206,0.38304,2610.0,2609.8,0.38306]
[1724343951411,0.38304,2609.9,2609.7,1.17076]
[1724343951620,0.38306,2609.8,2609.7,0.7877]
[1724343952014,0.38306,2609.8,2609.7,5.00277]
[1724343952609,0.38305,2609.9,2609.8,0.38306]
[1724343953015,3.2078,2610.2,2610.1,0.38301]
[1724343953219,0.38302,2610.1,2609.9,0.38304]
[1724343953616,0.38302,2610.1,2610.0,0.38303]
[1724343954213,0.38302,2610.1,2609.9,0.38303]
[1724343955114,0.38302,2610.1,2610.0,0.38303]
[1724343955314,0.38302,2610.1,2609.9,0.38303]
[1724343956507,0.383,2610.2,2609.7,0.7877]
[1724343956718,0.383,2610.2,2609.8,3.2078]
[1724343956927,0.39278498,2610.3,2610.1,0.38301]
[1724343957517,0.39278498,2610.3,2609.6,0.00365923]
[1724343957518,0.95754,2610.1,2609.6,0.00365923]
[1724343957722,1.53983,2610.0,2609.8,0.38305]
[1724343957913,1.53983,2610.0,2609.7,0.38306]
[1724343960321,3.2078,2609.8,2609.4,0.00575209]
[1724343960520,0.38308,2609.6,2609.4,0.00575209]
[1724343960724,0.38305,2609.9,2609.5,0.38309]
[1724343961022,0.38304,2609.9,2609.5,0.38309]
[1724343961222,0.38304,2609.9,2609.5,1.18559]
[1724343961412,1.1568,2610.0,2609.5,1.18559]
[1724343961413,1.80123017,2610.0,2609.6,0.38308]
[1724343961608,0.38304,2609.9,2609.5,1.18959342]
[1724343961808,1.41819017,2610.0,2609.5,0.80650342]
[1724343962021,1.80123017,2610.0,2609.6,0.38308]
[1724343962221,1.80123017,2610.0,2609.5,1.18959342]
[1724343962724,0.64619017,2610.0,2609.5,0.80650342]
[1724343962925,0.64619017,2610.0,2609.7,0.38306]
[1724343964122,1.02922017,2610.0,2609.6,0.38308]
[1724343965018,0.38306,2609.8,2609.5,0.80650342]
[1724343966015,0.38306,2609.8,2609.5,1.18960342]
[1724343966210,3.59086,2609.8,2609.5,0.80650342]
[1724343966421,3.2078,2609.8,2609.5,0.80650342]
[1724343966627,0.38307,2609.7,2609.5,0.80650342]
[1724343967416,3.59086,2609.8,2609.5,0.80650342]
[1724343967921,0.38307,2609.7,2609.5,0.00400342]
[1724343968829,0.38308,2609.6,2609.5,0.00400342]
[1724343970330,0.38308,2609.7,2609.5,0.00400342]
[1724343970529,0.38308,2609.7,2609.5,0.38710342]
[1724343971524,0.3848,2610.0,2609.5,0.00400342]
[1724343971829,0.3848,2610.0,2609.6,0.38308]